[Event "*** Titled Tuesday Blitz"]
[Site "Chess.com"]
[Date "2020.05.12"]
[Round "10"]
[White "Skatchkov_V"]
[Black "Al_Shima"]
[Result "0-1"]
[WhiteElo "2541"]
[BlackElo "2439"]
[TimeControl "180+1"]
[EndTime "11:53:35 PDT"]
[Termination "Al_Shima won by resignation"]

1. d4 {[%clk 0:03:00.1]} 1... b5 {[%clk 0:02:59.4]} 2. Nf3 {[%clk 0:02:56.6]}
2... Bb7 {[%clk 0:02:59.4]} 3. a4 {[%clk 0:02:56.7]} 3... b4 {[%clk 0:02:59.3]}
4. c4 {[%clk 0:02:56.8]} 4... e6 {[%clk 0:02:58.9]} 5. Nbd2 {[%clk 0:02:56.8]}
5... f5 {[%clk 0:02:58.7]} 6. e3 {[%clk 0:02:55]} 6... Nf6 {[%clk 0:02:58.4]} 7.
Bd3 {[%clk 0:02:55.8]} 7... c5 {[%clk 0:02:58.1]} 8. O-O {[%clk 0:02:55.8]} 8...
Bd6 {[%clk 0:02:54.9]} 9. b3 {[%clk 0:02:54.8]} 9... O-O {[%clk 0:02:54.4]} 10.
Bb2 {[%clk 0:02:54.1]} 10... Ne4 {[%clk 0:02:52.6]} 11. Qc2 {[%clk 0:02:36.5]}
11... Nxd2 {[%clk 0:02:50.2]} 12. Nxd2 {[%clk 0:02:35.5]} 12... Bxh2+ {[%clk
0:02:41.3]} 13. Kxh2 {[%clk 0:02:35.1]} 13... Qh4+ {[%clk 0:02:40.9]} 14. Kg1
{[%clk 0:02:34.6]} 14... Bxg2 {[%clk 0:02:40.9]} 15. f3 {[%clk 0:02:13.5]} 15...
Qg3 {[%clk 0:02:06.3]} 16. Ne4 {[%clk 0:02:13.2]} 16... fxe4 {[%clk 0:02:04.6]}
17. Qxg2 {[%clk 0:02:13.2]} 17... Qxg2+ {[%clk 0:02:04.7]} 18. Kxg2 {[%clk
0:02:14]} 18... exd3 {[%clk 0:02:04.8]} 19. dxc5 {[%clk 0:02:09.4]} 19... Na6
{[%clk 0:02:04.5]} 20. Bd4 {[%clk 0:02:04.9]} 20... Rac8 {[%clk 0:01:51]} 21.
Rad1 {[%clk 0:02:01.5]} 21... Nxc5 {[%clk 0:01:50]} 22. Bxc5 {[%clk 0:02:01.5]}
22... Rxc5 {[%clk 0:01:50.9]} 23. Rxd3 {[%clk 0:02:02.3]} 23... d5 {[%clk
0:01:16.7]} 24. cxd5 {[%clk 0:02:00]} 24... exd5 {[%clk 0:01:08.4]} 25. Rfd1
{[%clk 0:01:59.5]} 25... Rf5 {[%clk 0:01:03.8]} 26. Kf2 {[%clk 0:01:53.9]} 26...
h5 {[%clk 0:00:57.4]} 27. Ke2 {[%clk 0:01:51.3]} 27... Rc2+ {[%clk 0:00:56.2]}
28. R1d2 {[%clk 0:01:50.5]} 28... Rc5 {[%clk 0:00:38.8]} 29. Rd4 {[%clk
0:01:50]} 29... a5 {[%clk 0:00:38.1]} 30. R2d3 {[%clk 0:01:34.7]} 30... Kf7
{[%clk 0:00:37.5]} 31. f4 {[%clk 0:01:28.9]} 31... g5 {[%clk 0:00:30.6]} 32.
fxg5 {[%clk 0:01:27.6]} 32... Rxg5 {[%clk 0:00:31.5]} 33. Rd1 {[%clk 0:01:26.2]}
33... Ke6 {[%clk 0:00:21]} 34. Rf1 {[%clk 0:01:14.1]} 34... Rc2+ {[%clk
0:00:19.8]} 35. Kd1 {[%clk 0:01:13.1]} 35... Rgg2 {[%clk 0:00:18.3]} 36. Rdf4
{[%clk 0:01:12.9]} 36... Ra2 {[%clk 0:00:09.9]} 37. Rf6+ {[%clk 0:01:12.6]}
37... Ke5 {[%clk 0:00:10.2]} 38. R6f5+ {[%clk 0:00:42.1]} 38... Ke4 {[%clk
0:00:10.3]} 39. R5f4+ {[%clk 0:00:41.9]} 39... Kd3 {[%clk 0:00:09.3]} 0-1

[Event "*** Titled Tuesday Blitz"]
[Site "Chess.com"]
[Date "2020.05.12"]
[Round "10"]
[White "cassoulet"]
[Black "jerry_77"]
[Result "0-1"]
[WhiteElo "2636"]
[BlackElo "2472"]
[TimeControl "180+1"]
[EndTime "11:53:36 PDT"]
[Termination "jerry_77 won on time"]

1. e4 {[%clk 0:02:56.9]} 1... c6 {[%clk 0:02:59.2]} 2. Nc3 {[%clk 0:02:55.3]}
2... d5 {[%clk 0:03:00.1]} 3. Nf3 {[%clk 0:02:54.4]} 3... Bg4 {[%clk 0:02:59.7]}
4. h3 {[%clk 0:02:54.4]} 4... Bxf3 {[%clk 0:02:58.7]} 5. Qxf3 {[%clk 0:02:55.3]}
5... e6 {[%clk 0:02:59.6]} 6. d3 {[%clk 0:02:53.9]} 6... Nd7 {[%clk 0:02:59.7]}
7. Bd2 {[%clk 0:02:54]} 7... Ne7 {[%clk 0:02:58.1]} 8. O-O-O {[%clk 0:02:52.7]}
8... g6 {[%clk 0:02:57.1]} 9. h4 {[%clk 0:02:49.7]} 9... Bg7 {[%clk 0:02:56.8]}
10. h5 {[%clk 0:02:46.4]} 10... Qc7 {[%clk 0:02:50.2]} 11. h6 {[%clk 0:02:42.6]}
11... Bd4 {[%clk 0:02:45.7]} 12. exd5 {[%clk 0:02:31.8]} 12... Nxd5 {[%clk
0:02:36.7]} 13. Ne4 {[%clk 0:02:10.1]} 13... N5f6 {[%clk 0:01:47]} 14. Bf4
{[%clk 0:01:56.5]} 14... Be5 {[%clk 0:01:38.8]} 15. Nxf6+ {[%clk 0:01:34.4]}
15... Nxf6 {[%clk 0:01:34.2]} 16. Bg5 {[%clk 0:01:28.1]} 16... Nd5 {[%clk
0:01:29.1]} 17. g3 {[%clk 0:01:17.4]} 17... Qb6 {[%clk 0:01:25.9]} 18. c3 {[%clk
0:01:10.7]} 18... Qa5 {[%clk 0:01:13.9]} 19. d4 {[%clk 0:01:03.7]} 19... Bd6
{[%clk 0:01:09.4]} 20. Bd2 {[%clk 0:00:29.4]} 20... Qxa2 {[%clk 0:01:07.6]} 21.
Bd3 {[%clk 0:00:24.9]} 21... Ba3 {[%clk 0:00:50.5]} 22. bxa3 {[%clk 0:00:19.8]}
22... Qxa3+ {[%clk 0:00:51.4]} 23. Kc2 {[%clk 0:00:19.6]} 23... Qa2+ {[%clk
0:00:50.7]} 24. Kc1 {[%clk 0:00:20]} 24... Qa3+ {[%clk 0:00:50.1]} 25. Kc2
{[%clk 0:00:20.4]} 25... Qa2+ {[%clk 0:00:40.8]} 26. Kc1 {[%clk 0:00:20.7]}
26... Nb4 {[%clk 0:00:24.2]} 27. cxb4 {[%clk 0:00:17.3]} 27... Qa3+ {[%clk
0:00:24.2]} 28. Kc2 {[%clk 0:00:17.1]} 28... Qa2+ {[%clk 0:00:24.6]} 29. Kc3
{[%clk 0:00:17.1]} 29... Qa3+ {[%clk 0:00:24.7]} 30. Kc4 {[%clk 0:00:07.9]}
30... Qa2+ {[%clk 0:00:21]} 31. Kc3 {[%clk 0:00:05.4]} 31... Qa3+ {[%clk
0:00:20.9]} 32. Kc4 {[%clk 0:00:05.9]} 32... Rd8 {[%clk 0:00:16.6]} 33. Ra1
{[%clk 0:00:02.4]} 33... Qb2 {[%clk 0:00:15.4]} 0-1

[Event "*** Titled Tuesday Blitz"]
[Site "Chess.com"]
[Date "2020.05.12"]
[Round "10"]
[White "Klavdia_Nik"]
[Black "AwesomeMango"]
[Result "0-1"]
[WhiteElo "2089"]
[BlackElo "2239"]
[TimeControl "180+1"]
[EndTime "11:53:37 PDT"]
[Termination "AwesomeMango won on time"]

1. Nf3 {[%clk 0:03:00.9]} 1... d5 {[%clk 0:02:59.2]} 2. c4 {[%clk 0:03:01]} 2...
e6 {[%clk 0:02:56]} 3. b3 {[%clk 0:03:00.4]} 3... Nf6 {[%clk 0:02:54.6]} 4. Bb2
{[%clk 0:03:00.5]} 4... Bd6 {[%clk 0:02:53.1]} 5. g3 {[%clk 0:03:00.8]} 5... O-O
{[%clk 0:02:52.2]} 6. Bg2 {[%clk 0:02:59.8]} 6... c6 {[%clk 0:02:52.1]} 7. O-O
{[%clk 0:02:59.4]} 7... Nbd7 {[%clk 0:02:51.9]} 8. d4 {[%clk 0:02:58.5]} 8... b5
{[%clk 0:02:26.4]} 9. Nbd2 {[%clk 0:02:52.9]} 9... bxc4 {[%clk 0:02:20.7]} 10.
bxc4 {[%clk 0:02:52]} 10... Rb8 {[%clk 0:02:21.1]} 11. Qc2 {[%clk 0:02:45.4]}
11... Ba6 {[%clk 0:02:15.8]} 12. Rab1 {[%clk 0:02:43.4]} 12... Qa5 {[%clk
0:02:09.5]} 13. Bc3 {[%clk 0:02:27.5]} 13... Qc7 {[%clk 0:02:04.8]} 14. Qa4
{[%clk 0:01:52.7]} 14... Bxc4 {[%clk 0:01:56.5]} 15. Nxc4 {[%clk 0:01:50.9]}
15... dxc4 {[%clk 0:01:56.8]} 16. Qxc4 {[%clk 0:01:51]} 16... c5 {[%clk
0:01:57.2]} 17. e3 {[%clk 0:01:33.7]} 17... Rfc8 {[%clk 0:01:49.1]} 18. dxc5
{[%clk 0:01:20.5]} 18... Qxc5 {[%clk 0:01:40.2]} 19. Qxc5 {[%clk 0:01:19.5]}
19... Nxc5 {[%clk 0:01:35.5]} 20. Bxf6 {[%clk 0:01:17.8]} 20... gxf6 {[%clk
0:01:34.3]} 21. Nd4 {[%clk 0:01:15.3]} 21... f5 {[%clk 0:01:25.6]} 22. h4 {[%clk
0:01:13.3]} 22... Rxb1 {[%clk 0:01:14.5]} 23. Rxb1 {[%clk 0:01:12.2]} 23... Kg7
{[%clk 0:01:14.9]} 24. Bf3 {[%clk 0:01:09]} 24... Ne4 {[%clk 0:01:09.5]} 25. Rb7
{[%clk 0:00:52]} 25... Rc7 {[%clk 0:01:03.9]} 26. Rxc7 {[%clk 0:00:44.1]} 26...
Bxc7 {[%clk 0:01:03.7]} 27. Nc6 {[%clk 0:00:38.6]} 27... a5 {[%clk 0:00:58.9]}
28. Nd4 {[%clk 0:00:18.5]} 28... Nc3 {[%clk 0:00:53.5]} 29. a3 {[%clk
0:00:14.3]} 29... Bd6 {[%clk 0:00:48.3]} 30. Nc2 {[%clk 0:00:07.3]} 30... Kf6
{[%clk 0:00:42.2]} 31. Bc6 {[%clk 0:00:07.1]} 31... Ke7 {[%clk 0:00:35.3]} 32.
a4 {[%clk 0:00:05.9]} 32... Bc5 {[%clk 0:00:29.1]} 33. Kg2 {[%clk 0:00:03.9]}
33... Kd6 {[%clk 0:00:29.3]} 34. Be8 {[%clk 0:00:02.9]} 34... f6 {[%clk
0:00:29.1]} 35. Kf3 {[%clk 0:00:01.4]} 35... h6 {[%clk 0:00:22.3]} 0-1

[Event "*** Titled Tuesday Blitz"]
[Site "Chess.com"]
[Date "2020.05.12"]
[Round "10"]
[White "Spartakus1975"]
[Black "Riptide27"]
[Result "1/2-1/2"]
[WhiteElo "2714"]
[BlackElo "2597"]
[TimeControl "180+1"]
[EndTime "11:53:39 PDT"]
[Termination "Game drawn by repetition"]

1. e4 {[%clk 0:03:00.9]} 1... e5 {[%clk 0:02:59.7]} 2. Nc3 {[%clk 0:02:58.4]}
2... Nf6 {[%clk 0:02:58.3]} 3. Bc4 {[%clk 0:02:58.2]} 3... Nxe4 {[%clk
0:02:56.3]} 4. Qh5 {[%clk 0:02:57.7]} 4... Nd6 {[%clk 0:02:55.1]} 5. Qxe5+
{[%clk 0:02:57.6]} 5... Qe7 {[%clk 0:02:52.7]} 6. Qxe7+ {[%clk 0:02:57.3]} 6...
Bxe7 {[%clk 0:02:53.6]} 7. Bb3 {[%clk 0:02:57.7]} 7... O-O {[%clk 0:02:41.1]} 8.
Nf3 {[%clk 0:02:50.8]} 8... Nf5 {[%clk 0:02:35.2]} 9. d4 {[%clk 0:02:49.3]} 9...
Nc6 {[%clk 0:02:31]} 10. d5 {[%clk 0:02:47.6]} 10... Ncd4 {[%clk 0:02:26.5]} 11.
Bf4 {[%clk 0:02:28.1]} 11... d6 {[%clk 0:02:13.3]} 12. Nxd4 {[%clk 0:02:25.5]}
12... Nxd4 {[%clk 0:02:12.9]} 13. O-O-O {[%clk 0:02:20.6]} 13... Nxb3+ {[%clk
0:02:12.3]} 14. axb3 {[%clk 0:02:21.1]} 14... Bd7 {[%clk 0:02:12.6]} 15. Rhe1
{[%clk 0:02:19.2]} 15... Rfe8 {[%clk 0:02:12.6]} 16. Be3 {[%clk 0:02:18.2]}
16... Bf6 {[%clk 0:02:07.5]} 17. Bd2 {[%clk 0:01:58.6]} 17... Bxc3 {[%clk
0:01:39.7]} 18. bxc3 {[%clk 0:01:49.3]} 18... Rxe1 {[%clk 0:01:38.4]} 19. Rxe1
{[%clk 0:01:49.2]} 19... Re8 {[%clk 0:01:37.7]} 20. Be3 {[%clk 0:01:49.1]} 20...
a5 {[%clk 0:01:30]} 21. c4 {[%clk 0:01:49]} 21... b6 {[%clk 0:01:28.6]} 22. Kd2
{[%clk 0:01:48.3]} 22... f5 {[%clk 0:01:28.8]} 23. Ra1 {[%clk 0:01:40.9]} 23...
Kf7 {[%clk 0:01:22.3]} 24. c3 {[%clk 0:01:38.7]} 24... h6 {[%clk 0:01:18.3]} 25.
f3 {[%clk 0:01:35.8]} 25... g5 {[%clk 0:01:16.7]} 26. b4 {[%clk 0:01:35.5]}
26... a4 {[%clk 0:01:11.4]} 27. c5 {[%clk 0:01:27.5]} 27... bxc5 {[%clk
0:01:09.7]} 28. bxc5 {[%clk 0:01:26.9]} 28... dxc5 {[%clk 0:01:08.7]} 29. Bxc5
{[%clk 0:01:26.7]} 29... Bb5 {[%clk 0:01:02.8]} 30. Re1 {[%clk 0:00:53.6]} 30...
Rxe1 {[%clk 0:00:58.7]} 31. Kxe1 {[%clk 0:00:54]} 31... Bc4 {[%clk 0:00:59.3]}
32. d6 {[%clk 0:00:54.3]} 32... cxd6 {[%clk 0:00:58.9]} 33. Bxd6 {[%clk
0:00:54.2]} 33... f4 {[%clk 0:00:51.4]} 34. h4 {[%clk 0:00:29.3]} 34... Ke6
{[%clk 0:00:43.7]} 35. Bf8 {[%clk 0:00:29]} 35... gxh4 {[%clk 0:00:35.5]} 36.
Kf2 {[%clk 0:00:28.9]} 36... Kf5 {[%clk 0:00:33]} 37. Kg1 {[%clk 0:00:28.2]}
37... Kg5 {[%clk 0:00:17.3]} 38. Kh2 {[%clk 0:00:27.8]} 38... Be6 {[%clk
0:00:17.4]} 39. Be7+ {[%clk 0:00:27.5]} 39... Kh5 {[%clk 0:00:17.6]} 40. Bd6
{[%clk 0:00:27.4]} 40... Kg5 {[%clk 0:00:17.2]} 41. Be7+ {[%clk 0:00:27.1]}
41... Kh5 {[%clk 0:00:17.6]} 42. Bd6 {[%clk 0:00:27]} 42... Kg5 {[%clk 0:00:18]}
43. Be7+ {[%clk 0:00:27.1]} 1/2-1/2

[Event "*** Titled Tuesday Blitz"]
[Site "Chess.com"]
[Date "2020.05.12"]
[Round "10"]
[White "Natalya_Buksa"]
[Black "GjakanTati"]
[Result "1-0"]
[WhiteElo "2548"]
[BlackElo "2642"]
[TimeControl "180+1"]
[EndTime "11:53:39 PDT"]
[Termination "Natalya_Buksa won by resignation"]

1. d4 {[%clk 0:03:00.9]} 1... d5 {[%clk 0:02:59.6]} 2. Nc3 {[%clk 0:03:01.4]}
2... Nf6 {[%clk 0:02:59]} 3. Bf4 {[%clk 0:03:01.8]} 3... Bf5 {[%clk 0:02:57.4]}
4. e3 {[%clk 0:03:02]} 4... e6 {[%clk 0:02:57.2]} 5. f3 {[%clk 0:03:02.5]} 5...
h6 {[%clk 0:02:53.2]} 6. g4 {[%clk 0:03:02.7]} 6... Bh7 {[%clk 0:02:52.3]} 7.
Bd3 {[%clk 0:03:03.3]} 7... Bxd3 {[%clk 0:02:47.7]} 8. Qxd3 {[%clk 0:03:04.2]}
8... Nbd7 {[%clk 0:02:30.5]} 9. Nge2 {[%clk 0:03:04]} 9... a6 {[%clk 0:02:26.7]}
10. h4 {[%clk 0:02:59.9]} 10... c5 {[%clk 0:02:23.6]} 11. Kf2 {[%clk 0:02:15.6]}
11... Be7 {[%clk 0:02:13.9]} 12. g5 {[%clk 0:02:09.9]} 12... Nh5 {[%clk
0:02:12.2]} 13. Rag1 {[%clk 0:02:02.2]} 13... Nxf4 {[%clk 0:01:53.7]} 14. Nxf4
{[%clk 0:02:01.5]} 14... Qb6 {[%clk 0:01:49.3]} 15. g6 {[%clk 0:01:53.3]} 15...
f6 {[%clk 0:01:45.4]} 16. dxc5 {[%clk 0:01:06]} 16... Nxc5 {[%clk 0:01:43.6]}
17. Qd2 {[%clk 0:01:03.7]} 17... O-O-O {[%clk 0:01:40.3]} 18. b4 {[%clk
0:00:49.6]} 18... Nd7 {[%clk 0:01:25.5]} 19. Na4 {[%clk 0:00:26.8]} 19... Qc6
{[%clk 0:01:21.4]} 20. Nc5 {[%clk 0:00:21.4]} 20... Nxc5 {[%clk 0:01:18]} 21.
bxc5 {[%clk 0:00:21.8]} 21... Bxc5 {[%clk 0:01:18.3]} 22. Rb1 {[%clk 0:00:21.8]}
22... d4 {[%clk 0:01:09.4]} 23. e4 {[%clk 0:00:21]} 23... d3+ {[%clk 0:01:06.6]}
24. Kg2 {[%clk 0:00:21.5]} 24... dxc2 {[%clk 0:00:58.9]} 25. Qxc2 {[%clk
0:00:22.4]} 25... Qd6 {[%clk 0:00:28.4]} 26. Rhd1 {[%clk 0:00:19.5]} 26... Qc6
{[%clk 0:00:12.1]} 27. Rdc1 {[%clk 0:00:17.4]} 27... b6 {[%clk 0:00:11.7]} 28.
Nd3 {[%clk 0:00:13.7]} 28... Rd6 {[%clk 0:00:08.1]} 29. Nxc5 {[%clk 0:00:14]}
29... bxc5 {[%clk 0:00:08.6]} 30. Qxc5 {[%clk 0:00:12.6]} 30... Qxc5 {[%clk
0:00:08.8]} 31. Rxc5+ {[%clk 0:00:13.5]} 31... Kd7 {[%clk 0:00:08.4]} 32. Rb7+
{[%clk 0:00:13.8]} 32... Ke8 {[%clk 0:00:07.9]} 33. Rc8+ {[%clk 0:00:13.1]}
33... Rd8 {[%clk 0:00:07.8]} 34. Rxd8+ {[%clk 0:00:13.6]} 34... Kxd8 {[%clk
0:00:08.7]} 35. Rb8+ {[%clk 0:00:14.2]} 35... Kc7 {[%clk 0:00:09.6]} 36. Rxh8
{[%clk 0:00:14.4]} 1-0

[Event "*** Titled Tuesday Blitz"]
[Site "Chess.com"]
[Date "2020.05.12"]
[Round "10"]
[White "amiralfio"]
[Black "konradrutkowski"]
[Result "0-1"]
[WhiteElo "2461"]
[BlackElo "2308"]
[TimeControl "180+1"]
[EndTime "11:53:40 PDT"]
[Termination "konradrutkowski won on time"]

1. e4 {[%clk 0:03:00.9]} 1... e5 {[%clk 0:02:59.4]} 2. Nf3 {[%clk 0:03:00.5]}
2... Nc6 {[%clk 0:02:58.9]} 3. Bc4 {[%clk 0:02:58.8]} 3... Nf6 {[%clk
0:02:58.3]} 4. d3 {[%clk 0:02:57.9]} 4... Be7 {[%clk 0:02:58.6]} 5. O-O {[%clk
0:02:57.4]} 5... O-O {[%clk 0:02:59]} 6. a4 {[%clk 0:02:54.9]} 6... d6 {[%clk
0:02:57.2]} 7. a5 {[%clk 0:02:54.2]} 7... Be6 {[%clk 0:02:50.5]} 8. Bxe6 {[%clk
0:02:52.6]} 8... fxe6 {[%clk 0:02:50.4]} 9. a6 {[%clk 0:02:53.5]} 9... b6 {[%clk
0:02:49]} 10. c3 {[%clk 0:02:53.6]} 10... Qd7 {[%clk 0:02:37.8]} 11. Nbd2 {[%clk
0:02:45.7]} 11... Nh5 {[%clk 0:02:30.3]} 12. Nc4 {[%clk 0:02:44.2]} 12... Nf4
{[%clk 0:02:29]} 13. g3 {[%clk 0:02:43.1]} 13... Ng6 {[%clk 0:02:22.9]} 14. Kg2
{[%clk 0:02:33.8]} 14... Rf7 {[%clk 0:02:08.4]} 15. h4 {[%clk 0:02:25.9]} 15...
Raf8 {[%clk 0:02:04]} 16. Ng5 {[%clk 0:02:09.4]} 16... Bxg5 {[%clk 0:02:03]} 17.
Bxg5 {[%clk 0:02:10.3]} 17... d5 {[%clk 0:01:53.8]} 18. h5 {[%clk 0:02:01.6]}
18... Nf4+ {[%clk 0:01:29.1]} 19. gxf4 {[%clk 0:01:59.1]} 19... dxc4 {[%clk
0:01:28.4]} 20. fxe5 {[%clk 0:01:59.5]} 20... Nxe5 {[%clk 0:01:11.4]} 21. dxc4
{[%clk 0:01:53]} 21... Qc6 {[%clk 0:01:02.5]} 22. Qe2 {[%clk 0:01:43.4]} 22...
Nf3 {[%clk 0:00:59.3]} 23. Bc1 {[%clk 0:01:31.8]} 23... e5 {[%clk 0:00:56.4]}
24. Rh1 {[%clk 0:01:16.7]} 24... Qe6 {[%clk 0:00:52.8]} 25. Kf1 {[%clk
0:01:01.1]} 25... Qg4 {[%clk 0:00:45.1]} 26. c5 {[%clk 0:00:35]} 26... bxc5
{[%clk 0:00:41.6]} 27. Qc4 {[%clk 0:00:31.5]} 27... Kh8 {[%clk 0:00:28.6]} 28.
h6 {[%clk 0:00:24.6]} 28... g6 {[%clk 0:00:19.1]} 29. Be3 {[%clk 0:00:22.2]}
29... Nd2+ {[%clk 0:00:18.3]} 30. Bxd2 {[%clk 0:00:20]} 30... Rxf2+ {[%clk
0:00:18.5]} 31. Ke1 {[%clk 0:00:20.5]} 31... Qg2 {[%clk 0:00:16.8]} 0-1

[Event "*** Titled Tuesday Blitz"]
[Site "Chess.com"]
[Date "2020.05.12"]
[Round "10"]
[White "tsvet2005"]
[Black "gui_borba"]
[Result "1-0"]
[WhiteElo "2494"]
[BlackElo "2345"]
[TimeControl "180+1"]
[EndTime "11:53:41 PDT"]
[Termination "tsvet2005 won by checkmate"]

1. d4 {[%clk 0:03:00.9]} 1... Nf6 {[%clk 0:02:59.7]} 2. c4 {[%clk 0:03:01.3]}
2... e6 {[%clk 0:02:59.5]} 3. Nc3 {[%clk 0:03:01.4]} 3... Bb4 {[%clk 0:02:59.5]}
4. f3 {[%clk 0:03:01.4]} 4... c5 {[%clk 0:02:58.9]} 5. d5 {[%clk 0:03:01.4]}
5... b5 {[%clk 0:02:58.9]} 6. e4 {[%clk 0:03:01.2]} 6... O-O {[%clk 0:02:55.8]}
7. Nh3 {[%clk 0:03:00.8]} 7... d6 {[%clk 0:02:54.8]} 8. Nf4 {[%clk 0:02:57.5]}
8... exd5 {[%clk 0:02:37]} 9. Nxd5 {[%clk 0:02:58.4]} 9... Nc6 {[%clk
0:02:35.3]} 10. Bg5 {[%clk 0:02:54.5]} 10... Nd4 {[%clk 0:02:29.1]} 11. Bxf6
{[%clk 0:02:32.3]} 11... gxf6 {[%clk 0:02:28.7]} 12. Bd3 {[%clk 0:02:32.9]}
12... f5 {[%clk 0:02:17.4]} 13. O-O {[%clk 0:02:29.7]} 13... Kh8 {[%clk
0:01:52.8]} 14. cxb5 {[%clk 0:02:15.6]} 14... Be6 {[%clk 0:01:44.8]} 15. exf5
{[%clk 0:02:04.5]} 15... Nxf5 {[%clk 0:01:41.2]} 16. Bxf5 {[%clk 0:01:59.1]}
16... Bxf5 {[%clk 0:01:39.9]} 17. Nxb4 {[%clk 0:01:59.2]} 17... cxb4 {[%clk
0:01:39.1]} 18. Qd4+ {[%clk 0:01:59.6]} 18... f6 {[%clk 0:01:35.2]} 19. Qxb4
{[%clk 0:01:59]} 19... Rg8 {[%clk 0:01:33.8]} 20. Kh1 {[%clk 0:01:50.9]} 20...
Qb6 {[%clk 0:01:27]} 21. Rad1 {[%clk 0:01:49.6]} 21... Rad8 {[%clk 0:01:13.2]}
22. Nd5 {[%clk 0:01:45.2]} 22... Qb7 {[%clk 0:01:09]} 23. Qd4 {[%clk 0:01:42.2]}
23... Rdf8 {[%clk 0:01:02.5]} 24. Nxf6 {[%clk 0:01:33.3]} 24... Rg6 {[%clk
0:00:54.5]} 25. Ne4+ {[%clk 0:01:17.6]} 25... Kg8 {[%clk 0:00:54.4]} 26. Nxd6
{[%clk 0:01:17.4]} 26... Qe7 {[%clk 0:00:39.2]} 27. Nxf5 {[%clk 0:01:14]} 27...
Rxf5 {[%clk 0:00:40.1]} 28. Qd8+ {[%clk 0:01:08.8]} 28... Qxd8 {[%clk
0:00:39.3]} 29. Rxd8+ {[%clk 0:01:09.7]} 29... Kg7 {[%clk 0:00:38.3]} 30. a4
{[%clk 0:01:08.7]} 30... Rc5 {[%clk 0:00:36.6]} 31. Rd2 {[%clk 0:01:03.9]} 31...
Kh6 {[%clk 0:00:36.3]} 32. Rfd1 {[%clk 0:01:01.5]} 32... a6 {[%clk 0:00:32.7]}
33. bxa6 {[%clk 0:01:00.1]} 33... Rxa6 {[%clk 0:00:33.6]} 34. Rd6+ {[%clk
0:00:59.9]} 34... Rxd6 {[%clk 0:00:33.7]} 35. Rxd6+ {[%clk 0:01:00.8]} 35... Kg5
{[%clk 0:00:34.4]} 36. h3 {[%clk 0:01:00.2]} 36... Kf4 {[%clk 0:00:34]} 37. Kh2
{[%clk 0:00:56.3]} 37... Rc2 {[%clk 0:00:32.9]} 38. b4 {[%clk 0:00:52.7]} 38...
h5 {[%clk 0:00:30.4]} 39. a5 {[%clk 0:00:51.4]} 39... h4 {[%clk 0:00:31.3]} 40.
a6 {[%clk 0:00:50.5]} 40... Ke3 {[%clk 0:00:32.2]} 41. b5 {[%clk 0:00:47]} 41...
Ke2 {[%clk 0:00:31.9]} 42. a7 {[%clk 0:00:45.8]} 42... Kf1 {[%clk 0:00:32.1]}
43. Rg6 {[%clk 0:00:44.9]} 43... Rc1 {[%clk 0:00:25.2]} 44. a8=Q {[%clk
0:00:41.6]} 44... Re1 {[%clk 0:00:26.1]} 45. b6 {[%clk 0:00:40.2]} 45... Re2
{[%clk 0:00:27]} 46. b7 {[%clk 0:00:38.8]} 46... Ke1 {[%clk 0:00:26.4]} 47. b8=Q
{[%clk 0:00:37.3]} 47... Kd1 {[%clk 0:00:27.3]} 48. Qb1+ {[%clk 0:00:36.5]}
48... Kd2 {[%clk 0:00:26.6]} 49. Qd5+ {[%clk 0:00:36.7]} 49... Ke3 {[%clk
0:00:26.3]} 50. Qb6+ {[%clk 0:00:36.4]} 50... Kf4 {[%clk 0:00:25.1]} 51. Rg4#
{[%clk 0:00:37.3]} 1-0

[Event "*** Titled Tuesday Blitz"]
[Site "Chess.com"]
[Date "2020.05.12"]
[Round "10"]
[White "barbara25"]
[Black "gvanna"]
[Result "0-1"]
[WhiteElo "2299"]
[BlackElo "2462"]
[TimeControl "180+1"]
[EndTime "11:53:42 PDT"]
[Termination "gvanna won by resignation"]

1. e4 {[%clk 0:03:00.9]} 1... c5 {[%clk 0:02:59.8]} 2. Nf3 {[%clk 0:02:59.9]}
2... Nc6 {[%clk 0:02:59.5]} 3. g3 {[%clk 0:02:58.3]} 3... g6 {[%clk 0:02:59.7]}
4. Bg2 {[%clk 0:02:58.4]} 4... Bg7 {[%clk 0:03:00.2]} 5. O-O {[%clk 0:02:58.9]}
5... e6 {[%clk 0:02:59.4]} 6. c3 {[%clk 0:02:58.8]} 6... Nge7 {[%clk 0:02:58.2]}
7. d4 {[%clk 0:02:58.5]} 7... cxd4 {[%clk 0:02:58.6]} 8. cxd4 {[%clk 0:02:58.1]}
8... d5 {[%clk 0:02:58.8]} 9. e5 {[%clk 0:02:57]} 9... O-O {[%clk 0:02:58.9]}
10. Nc3 {[%clk 0:02:56.8]} 10... f6 {[%clk 0:02:59]} 11. exf6 {[%clk 0:02:55.1]}
11... Bxf6 {[%clk 0:02:59.3]} 12. Re1 {[%clk 0:02:55]} 12... Bd7 {[%clk
0:02:53.7]} 13. Bh6 {[%clk 0:02:53.4]} 13... Re8 {[%clk 0:02:51.6]} 14. Be3
{[%clk 0:02:51.7]} 14... Nf5 {[%clk 0:02:51.2]} 15. b3 {[%clk 0:02:50.3]} 15...
Rc8 {[%clk 0:02:50.3]} 16. Rc1 {[%clk 0:02:49.1]} 16... Qa5 {[%clk 0:02:45.3]}
17. Na4 {[%clk 0:02:47.3]} 17... b6 {[%clk 0:02:41.3]} 18. g4 {[%clk 0:02:39]}
18... Nxe3 {[%clk 0:02:40]} 19. fxe3 {[%clk 0:02:38.9]} 19... Nb4 {[%clk
0:02:32.7]} 20. Rxc8 {[%clk 0:02:34.1]} 20... Rxc8 {[%clk 0:02:31.4]} 21. e4
{[%clk 0:02:26.4]} 21... Nxa2 {[%clk 0:02:26.8]} 22. exd5 {[%clk 0:02:22.4]}
22... exd5 {[%clk 0:02:26.8]} 23. Ne5 {[%clk 0:02:20]} 23... Bxa4 {[%clk
0:01:59.7]} 24. bxa4 {[%clk 0:02:08.5]} 24... Rc1 {[%clk 0:01:59.3]} 25. Qxc1
{[%clk 0:02:06.3]} 25... Nxc1 {[%clk 0:01:58.5]} 26. Rxc1 {[%clk 0:02:06.3]}
26... Bxe5 {[%clk 0:01:25.6]} 27. dxe5 {[%clk 0:02:05.2]} 27... Kf7 {[%clk
0:01:23.5]} 28. h4 {[%clk 0:01:32.1]} 28... Ke6 {[%clk 0:01:22.5]} 29. h5 {[%clk
0:01:26.3]} 29... Qxa4 {[%clk 0:01:19.2]} 30. Rc7 {[%clk 0:01:21.7]} 30... Qa1+
{[%clk 0:01:16.3]} 31. Bf1 {[%clk 0:01:18.4]} 31... Qd4+ {[%clk 0:01:15.6]} 32.
Kh1 {[%clk 0:01:14.4]} 32... gxh5 {[%clk 0:01:11.3]} 33. Rxa7 {[%clk 0:01:04.7]}
33... Qe4+ {[%clk 0:01:06.8]} 34. Bg2 {[%clk 0:01:03.6]} 34... Qe1+ {[%clk
0:01:06.5]} 35. Kh2 {[%clk 0:01:02.9]} 35... Qxe5+ {[%clk 0:01:06.2]} 36. Kg1
{[%clk 0:01:00]} 36... hxg4 {[%clk 0:01:02.1]} 37. Ra8 {[%clk 0:00:59]} 37...
Qd4+ {[%clk 0:00:59.4]} 38. Kh2 {[%clk 0:00:57.2]} 38... Qf4+ {[%clk 0:00:59.4]}
39. Kg1 {[%clk 0:00:55.4]} 39... g3 {[%clk 0:00:56.1]} 40. Re8+ {[%clk
0:00:53.3]} 40... Kf7 {[%clk 0:00:55]} 41. Re2 {[%clk 0:00:44.9]} 41... Qd4+
{[%clk 0:00:54.1]} 42. Kf1 {[%clk 0:00:43.7]} 42... h5 {[%clk 0:00:48.5]} 43.
Bf3 {[%clk 0:00:40.2]} 43... Qf4 {[%clk 0:00:42.3]} 44. Kg2 {[%clk 0:00:40.1]}
44... h4 {[%clk 0:00:42.6]} 45. Bxd5+ {[%clk 0:00:37.7]} 45... Kg7 {[%clk
0:00:40.3]} 46. Re7+ {[%clk 0:00:35.7]} 46... Kg6 {[%clk 0:00:36.7]} 47. Re6+
{[%clk 0:00:31.8]} 47... Kg5 {[%clk 0:00:37.1]} 48. Re2 {[%clk 0:00:26.7]} 48...
h3+ {[%clk 0:00:37.3]} 49. Kg1 {[%clk 0:00:20.2]} 49... Qc1+ {[%clk 0:00:36.4]}
0-1